fUST/lending_fUST_20240821
["ID","MTS","AMOUNT","RATE_DAILY","PERIOD"]
[335394219,1724183439060,-156.6552172,0.0002,2]
[335394220,1724183439069,-1260.76755592,0.0002,2]
[335394221,1724183439078,-151.20881187,0.0002009,2]
[335394222,1724183439088,-3582.71675642,0.00020144,2]
[335394223,1724183439098,-440.9,0.0002017,2]
[335394224,1724183439108,-500.0,0.00020266,2]
[335394225,1724183439117,-3582.71675642,0.00020335,2]
[335394226,1724183439126,-271.56079623,0.00020417,2]
[335394227,1724183439135,-150.112233,0.000206,5]
[335394228,1724183439144,-275.399892,0.00020707,2]
[335394229,1724183439153,-500.0,0.00021075,2]
[335394230,1724183439163,-169.44782342,0.00021075,2]
[335394231,1724183439172,-500.0,0.00021075,2]
[335394232,1724183439181,-500.0,0.00021075,2]
[335394233,1724183439190,-500.0,0.00021075,2]
[335394234,1724183439199,-180.56899049,0.00021075,2]
[335394235,1724183439208,-500.0,0.00021075,2]
[335394236,1724183439217,-500.0,0.00021075,2]
[335394237,1724183439226,-500.0,0.00021075,2]
[335394238,1724183439235,-3582.71675642,0.00021076,2]
[335394239,1724183439245,-500.0,0.00021164,2]
[335394240,1724183439254,-52662.3383071,0.0002118,3]
[335394241,1724183439263,-500.0,0.00021189,2]
[335394242,1724183439272,-3582.71675642,0.0002133,2]
[335394243,1724183439281,-1287.58,0.0002135,3]
[335394244,1724183439291,-440.9,0.00021653,2]
[335394245,1724183439299,-151.0,0.00021653,2]
[335394246,1724183439309,-500.0,0.00021662,2]
[335394247,1724183439317,-500.0,0.00021897,2]
[335394248,1724183439327,-308.70225098,0.00022,2]
[335394249,1724183439336,-3557.99428053,0.00022,30]
[335394250,1724183439347,-302.27461649,0.00022,2]
[335394251,1724183439356,-302.27461649,0.00022,2]
[335394252,1724183439365,-3000.32534613,0.00022,2]
[335394253,1724183439375,-1859.59531571,0.00022042,2]
[335394254,1724183439383,-1694.7430816,0.0002217,2]
[335394255,1724183439393,-150.112233,0.000222,3]
[335394256,1724183439402,-302.27461649,0.0002222,2]
[335394257,1724183439411,-302.27461649,0.0002222,2]
[335394258,1724183439420,-166.332645,0.00022225,2]
[335394259,1724183439429,-171.493407,0.00022225,2]
[335394260,1724183439557,-168.584173,0.00022225,2]
[335394261,1724183439567,-171.493404,0.00022225,2]
[335394262,1724183439576,-166.332644,0.00022225,2]
[335394263,1724183439585,-171.493404,0.00022225,2]
[335394264,1724183439595,-166.332644,0.00022225,2]
[335394265,1724183439605,-174.492612,0.00022225,2]
[335394266,1724183439614,-171.493404,0.00022225,2]
[335394267,1724183439623,-168.584172,0.00022225,2]
[335394268,1724183439635,-166.332644,0.00022225,2]
[335394269,1724183439645,-302.27461649,0.0002244,2]
[335394270,1724183439655,-302.27461649,0.0002244,2]
[335394271,1724183439664,-302.27461649,0.0002266,2]
[335394272,1724183439673,-302.27461649,0.0002266,2]
[335394273,1724183439683,-500.0,0.00022762,2]
[335394274,1724183439692,-500.0,0.00022875,2]
[335394275,1724183439702,-302.27461649,0.0002288,2]
[335394276,1724183439711,-302.27461649,0.0002288,2]
[335394277,1724183439721,-1154.8012744,0.0002295,2]
[335394278,1724183439730,-200.0,0.00023,2]
[335394279,1724183439739,-453.15566962,0.000231,4]
[335394280,1724183439748,-453.41192473,0.000231,4]
[335394281,1724183439757,-440.9,0.00023136,2]
[335394282,1724183439768,-151.0,0.00023136,2]
[335394283,1724183439778,-453.41192473,0.0002332,4]
[335394284,1724183439788,-453.41192473,0.0002354,4]
[335394285,1724183439798,-453.41192473,0.0002376,4]
[335394286,1724183439806,-150.112233,0.000238,2]
[335394287,1724183439816,-453.41192473,0.0002398,4]
[335394288,1724183439826,-953.45396956,0.00024081,2]
[335394289,1724183439836,-10342.93698711,0.00024105,2]
[335394290,1724183439849,-10342.93698711,0.00024105,2]
[335394291,1724183439858,-782.65797788,0.0002411,2]
[335394292,1724183439868,-500.0,0.00024117,2]
[335394293,1724183439878,-154.62117811,0.00024121,2]
[335394294,1724183439888,-277.6716568,0.00024124,2]
[335394295,1724183439897,-435.0,0.00024135,2]
[335394296,1724183439906,-1111.07542891,0.00024139,2]
[335394297,1724183439916,-154.62117811,0.00024139,2]
[335394298,1724183439927,-154.71377951,0.00024158,2]
[335394299,1724183439937,-154.62117811,0.00024172,2]
[335394300,1724183439946,-1859.59531571,0.00024185,2]
[335394301,1724183439957,-52662.3383071,0.00024207,3]
[335394302,1724183439966,-3135.64803338,0.00024217,30]
[335394303,1724183439976,-440.9,0.00024619,2]
[335394304,1724183439985,-151.0,0.00024619,2]
[335394305,1724183439994,-380.0,0.00024658,2]
[335394306,1724183440004,-200.0,0.00024658,2]
[335394307,1724183440013,-200.0,0.00024658,15]
[335394308,1724183440022,-500.0,0.00024802,2]
[335394309,1724183440031,-592.74060959,0.000249,2]
[335394310,1724183440041,-105324.676614,0.0002499,3]
[335394311,1724183440051,-196.22601312,0.00025,2]
[335394312,1724183440060,-154.60575532,0.00025,2]
[335394313,1724183440072,-5657.61185921,0.00025,120]
[335394314,1724183440081,-72400.28960644,0.00025,2]
[335394315,1724183440091,-308.19214429,0.00025,2]
[335394316,1724183440101,-258.18032213,0.00025,120]
[335394317,1724183440111,-277.92028119,0.00025,30]
[335394318,1724183440120,-199.0,0.00025,2]
[335394319,1724183440129,-4574.34,0.00025,14]
[335394320,1724183440138,-298.0,0.00025,7]
[335394321,1724183440147,-825.1,0.00025,14]
[335394322,1724183440156,-503.79102748,0.00025,2]
[335394323,1724183440165,-52140.91,0.00025,14]
[335394324,1724183440174,-503.79102748,0.0002525,2]
[335394325,1724183440184,-150.112233,0.000254,9]
[335394326,1724183440193,-503.79102748,0.000255,2]
[335394328,1724183440202,-500.0,0.00025528,2]
[335394329,1724183440211,-503.79102748,0.0002575,2]
[335394330,1724183440220,-232.11968218,0.00026,120]
[335394331,1724183440229,-503.79102748,0.00026,2]
[335394332,1724183440238,-1154.8012744,0.00026,2]
[335394333,1724183440247,-592.74060956,0.00026011,2]
[335394334,1724183440257,-440.9,0.00026102,2]
[335394335,1724183440267,-151.0,0.00026102,2]
[335394336,1724183440276,-503.79102748,0.0002625,2]
[335394337,1724183440285,-1859.59531571,0.00026328,2]
[335394338,1724183440294,-165.008253,0.00026388,2]
[335394339,1724183440303,-500.0,0.00026394,2]
[335394340,1724183440313,-7458.94652043,0.0002649,2]
[335394341,1724183440322,-503.79102748,0.000265,2]
[335394342,1724183440331,-885.08,0.000266,31]
[335394343,1724183440340,-885.08,0.000266,31]
[335394344,1724183440351,-885.08,0.000266,31]
[335394345,1724183440359,-885.08,0.000266,31]
[335394346,1724183440368,-885.08,0.000266,31]
[335394347,1724183440378,-885.08,0.000266,31]
[335394348,1724183440386,-885.08,0.000266,31]
[335394349,1724183440396,-885.08,0.000266,31]
[335394350,1724183440405,-885.08,0.000266,31]
[335394351,1724183440414,-885.08,0.000266,31]
[335394352,1724183440423,-885.08,0.000266,31]
[335394353,1724183440431,-885.08,0.000266,31]
[335394354,1724183440441,-503.79102748,0.0002675,2]
[335394355,1724183440450,-7193.68785226,0.000268,2]
[335394356,1724183440459,-151.0,0.000268,7]
[335394358,1724183440468,-151.0,0.000268,7]
[335394359,1724183440477,-151.0,0.000268,7]
[335394360,1724183440487,-151.0,0.000268,7]
[335394361,1724183440495,-151.0,0.000268,7]
[335394362,1724183440504,-151.0,0.000268,7]
[335394363,1724183440513,-188.746739,0.000268,7]
[335394364,1724183440522,-188.746739,0.000268,7]
[335394365,1724183440531,-151.0,0.000268,7]
[335394366,1724183440541,-150.112233,0.00027,8]
[335394367,1724183440550,-503.33879149,0.00027,2]
[335394368,1724183440559,-500.0,0.0002712,2]
[335394369,1724183440568,-592.74060956,0.00027122,2]
[335394370,1724183440577,-500.0,0.00027157,2]
[335394371,1724183440586,-275.399892,0.00027167,2]
[335394373,1724183440596,-151.0,0.00027397,7]
[335394375,1724183440605,-151.0,0.00027397,7]
[335394376,1724183440614,-440.9,0.00027585,2]
[335394378,1724183440624,-151.0,0.00027585,2]
[335394380,1724183440634,-1648.56480432,0.0002799,2]
[335394381,1724183440643,-4900.0,0.00028,2]
[335394382,1724183440652,-600.00808,0.00028,2]
[335394383,1724183440661,-52140.91,0.00028,14]
[335394384,1724183440670,-339.14513774,0.00028,30]
[335394385,1724183440680,-500.0,0.00028048,2]
[335394386,1724183440689,-825.1,0.000281,14]
[335394387,1724183440698,-298.0,0.000282,7]
[335394388,1724183440707,-592.74060956,0.00028233,2]
[335394389,1724183440716,-1859.59531571,0.00028471,2]
[335394390,1724183440725,-150.112233,0.000286,9]
[335394392,1724183440734,-4574.34,0.000286,14]
[335394393,1724183440743,-885.08,0.000286,31]
[335394394,1724183440752,-885.08,0.000286,31]
[335394395,1724183440761,-885.08,0.000286,31]
[335394396,1724183440771,-885.08,0.000286,31]
[335394397,1724183440780,-885.08,0.000286,31]
[335394398,1724183440789,-885.08,0.000286,31]
[335394399,1724183440798,-885.08,0.000286,31]
[335394400,1724183440807,-885.08,0.000286,31]
[335394401,1724183440816,-885.08,0.000286,31]
[335394402,1724183440827,-885.08,0.000286,31]
[335394403,1724183440840,-885.08,0.000286,31]
[335394404,1724183440854,-885.08,0.000286,31]
[335394405,1724183440863,-885.08,0.000286,31]
[335394406,1724183440872,-885.08,0.000286,31]
[335394407,1724183440882,-885.08,0.000286,31]
[335394408,1724183440892,-885.08,0.000286,31]
[335394409,1724183440902,-885.08,0.000286,31]
[335394410,1724183440911,-885.08,0.000286,31]
[335394411,1724183440920,-885.08,0.000286,31]
[335394412,1724183440930,-885.08,0.000286,31]
[335394413,1724183440940,-885.08,0.000286,31]
[335394414,1724183440949,-885.08,0.000286,31]
[335394415,1724183440958,-885.08,0.000286,31]
[335394416,1724183440968,-885.08,0.000286,31]
[335394417,1724183440978,-151.0,0.000286,7]
[335394418,1724183440987,-151.0,0.000286,7]
[335394419,1724183440996,-151.0,0.000286,7]
[335394420,1724183441006,-500.0,0.00028883,2]
[335394421,1724183441015,-1154.8012744,0.0002905,2]
[335394422,1724183441024,-440.9,0.00029068,2]
[335394423,1724183441033,-151.0,0.00029068,2]
[335394424,1724183441042,-500.0,0.00029163,2]
[335394425,1724183441052,-592.74060956,0.00029344,2]
[335394426,1724183441061,-160.0,0.000298,3]
[335394427,1724183441071,-500.0,0.00029972,2]
[335394428,1724183441080,-489.18411625,0.0003,3]
[335394429,1724183441089,-178.69269968,0.0003,5]
[335394430,1724183441100,-223.0,0.0003,2]
[335394431,1724183441112,-271.64486807,0.0003,2]
[335394432,1724183441121,-500.0,0.00030014,7]
[335394433,1724183441130,-500.0,0.00030175,7]
[335394434,1724183441140,-150.112233,0.000302,10]
[335394435,1724183441150,-592.74060956,0.00030456,2]
[335394436,1724183441162,-440.9,0.0003055,2]
[335394437,1724183441173,-151.0,0.0003055,2]
[335394438,1724183441184,-150.112236,0.000306,6]
[335394439,1724183441193,-343.4714,0.00030614,7]
[335394440,1724183441202,-343.4714,0.00030614,7]
[335394441,1724183441212,-151.0,0.00030614,7]
[335394442,1724183441222,-294.120576,0.00030614,7]
[335394443,1724183441232,-1859.59531571,0.00030614,2]
[335394444,1724183441245,-885.08,0.000307,31]
[335394445,1724183441255,-885.08,0.000307,31]
[335394446,1724183441266,-885.08,0.000307,31]
[335394447,1724183441276,-885.08,0.000307,31]
[335394448,1724183441286,-885.08,0.000307,31]
[335394449,1724183441297,-885.08,0.000307,31]
[335394450,1724183441307,-885.08,0.000307,31]
[335394451,1724183441317,-885.08,0.000307,31]
[335394453,1724183441327,-885.08,0.000307,31]
[335394454,1724183441337,-885.08,0.000307,31]
[335394455,1724183441347,-885.08,0.000307,31]
[335394456,1724183441358,-885.08,0.000307,31]
[335394457,1724183441368,-885.08,0.000307,31]
[335394458,1724183441377,-885.08,0.000307,31]
[335394459,1724183441387,-885.08,0.000307,31]
[335394460,1724183441396,-885.08,0.000307,31]
[335394461,1724183441405,-885.08,0.000307,31]
[335394462,1724183441414,-885.08,0.000307,31]
[335394463,1724183441423,-885.08,0.000307,31]
[335394464,1724183441433,-885.08,0.000307,31]
[335394465,1724183441442,-885.08,0.000307,31]
[335394466,1724183441451,-885.08,0.000307,31]
[335394467,1724183441461,-885.08,0.000307,31]
[335394468,1724183441470,-885.08,0.000307,31]
[335394469,1724183441479,-592.74060956,0.00031567,2]
[335394470,1724183441490,-150.112233,0.000317,5]
[335394471,1724183441499,-52140.91,0.000317,14]
[335394472,1724183441508,-157.374697,0.00031781,2]
[335394473,1724183441518,-150.112233,0.000318,10]
[335394474,1724183441527,-437.0,0.00032,5]
[335394475,1724183441536,-440.9,0.00032033,3]
[335394476,1724183441631,-151.0,0.00032033,3]
[335394477,1724183441641,-1154.8012744,0.000321,2]
[335394478,1724183441651,-151.0,0.000322,7]
[335394479,1724183441660,-475.0,0.000322,7]
[335394480,1724183441670,-151.0,0.000322,7]
[335394481,1724183441679,-151.0,0.000322,7]
[335394482,1724183441689,-475.0,0.000322,7]
[335394483,1724183441699,-151.0,0.000322,7]
[335394484,1724183441709,-415.862932,0.000322,7]
[335394485,1724183441719,-151.0,0.000322,7]
[335394486,1724183441728,-415.862932,0.000322,7]
[335394487,1724183441737,-151.0,0.000322,7]
[335394488,1724183441746,-5523.812381,0.000322,7]
[335394489,1724183441755,-5523.812381,0.000322,7]
[335394490,1724183441766,-221.988396,0.000322,7]
[335394491,1724183441776,-151.0,0.000322,7]
[335394492,1724183441785,-151.0,0.000322,7]
[335394493,1724183441794,-203.728254,0.000322,7]
[335394494,1724183441803,-151.0,0.000322,7]
[335394495,1724183441813,-151.0,0.000322,7]
[335394496,1724183441822,-151.0,0.000322,7]
[335394497,1724183441831,-151.660139,0.000322,7]
[335394498,1724183441846,-151.0,0.000322,7]
[335394499,1724183441855,-158.130838,0.000322,7]
[335394500,1724183441864,-158.130838,0.000322,7]
[335394501,1724183441873,-327.133494,0.000322,7]
[335394502,1724183441882,-151.0,0.000322,7]
[335394503,1724183441891,-327.133494,0.000322,7]
[335394504,1724183441901,-151.0,0.000322,7]
[335394505,1724183441909,-151.0,0.000322,7]
[335394506,1724183441921,-151.0,0.000322,7]
[335394507,1724183441931,-151.0,0.000322,7]
[335394508,1724183441940,-151.0,0.000322,7]
[335394509,1724183441949,-188.746739,0.000322,7]
[335394510,1724183441958,-188.746739,0.000322,7]
[335394511,1724183441967,-151.0,0.000322,7]
[335394512,1724183441976,-283.05968,0.000322,7]
[335394513,1724183441985,-600.0,0.00032277,7]
[335394514,1724183441994,-298.0,0.000323,7]
[335394515,1724183442004,-825.1,0.000323,14]
[335394516,1724183442013,-160.0,0.000324,4]
[335394517,1724183442023,-306.0,0.00032466,2]
[335394518,1724183442032,-323253.02218176,0.000325,60]
[335394519,1724183442041,-4574.34,0.000325,14]
[335394520,1724183442050,-151.0,0.000325,7]
[335394521,1724183442060,-151.0,0.000325,7]
[335394522,1724183442070,-343.4714,0.000325,7]
[335394523,1724183442081,-343.4714,0.000325,7]
[335394524,1724183442090,-151.0,0.000325,7]
[335394525,1724183442101,-151.0,0.000325,7]
[335394526,1724183442111,-475.0,0.000325,7]
[335394527,1724183442120,-151.0,0.000325,7]
[335394528,1724183442130,-151.0,0.000325,7]
[335394529,1724183442140,-475.0,0.000325,7]
[335394530,1724183442149,-415.862932,0.000325,7]
[335394531,1724183442158,-151.0,0.000325,7]
[335394532,1724183442167,-415.862932,0.000325,7]
[335394533,1724183442176,-151.0,0.000325,7]
[335394534,1724183442185,-5523.812381,0.000325,7]
[335394535,1724183442194,-5523.812381,0.000325,7]
[335394536,1724183442203,-151.0,0.000325,7]
[335394537,1724183442212,-151.0,0.000325,7]
[335394538,1724183442221,-151.0,0.000325,7]
[335394539,1724183442230,-151.0,0.000325,7]
[335394540,1724183442239,-158.130838,0.000325,7]
[335394541,1724183442249,-158.130838,0.000325,7]
[335394542,1724183442258,-327.133494,0.000325,7]
[335394543,1724183442267,-151.0,0.000325,7]
[335394544,1724183442276,-327.133494,0.000325,7]
[335394545,1724183442285,-151.0,0.000325,7]
[335394546,1724183442294,-151.0,0.000325,7]
[335394547,1724183442304,-151.0,0.000325,7]
[335394548,1724183442313,-151.0,0.000325,7]
[335394549,1724183442322,-151.0,0.000325,7]
[335394550,1724183442331,-188.746739,0.000325,7]
[335394551,1724183442340,-188.746739,0.000325,7]
[335394552,1724183442350,-151.0,0.000325,7]
[335394553,1724183442359,-151.0,0.000325,7]
[335394554,1724183442368,-151.0,0.000325,7]
[335394555,1724183442377,-500.0,0.00032632,7]
[335394556,1724183442386,-592.74060956,0.00032678,2]
[335394557,1724183442395,-500.0,0.00032687,7]
[335394558,1724183442404,-885.08,0.000327,31]
[335394559,1724183442413,-885.08,0.000327,31]
[335394560,1724183442422,-885.08,0.000327,31]
[335394561,1724183442432,-885.08,0.000327,31]
[335394562,1724183442441,-885.08,0.000327,31]
[335394563,1724183442450,-885.08,0.000327,31]
[335394564,1724183442459,-885.08,0.000327,31]
[335394565,1724183442467,-885.08,0.000327,31]
[335394566,1724183442476,-885.08,0.000327,31]
[335394567,1724183442485,-885.08,0.000327,31]
[335394568,1724183442494,-885.08,0.000327,31]
[335394569,1724183442503,-885.08,0.000327,31]
[335394570,1724183442513,-885.08,0.000327,31]
[335394571,1724183442522,-885.08,0.000327,31]
[335394572,1724183442531,-885.08,0.000327,31]
[335394573,1724183442540,-885.08,0.000327,31]
[335394574,1724183442549,-885.08,0.000327,31]
[335394575,1724183442558,-885.08,0.000327,31]
[335394576,1724183442568,-885.08,0.000327,31]
[335394577,1724183442577,-885.08,0.000327,31]
[335394578,1724183442586,-885.08,0.000327,31]
[335394579,1724183442595,-885.08,0.000327,31]
[335394580,1724183442604,-885.08,0.000327,31]
[335394581,1724183442613,-885.08,0.000327,31]
[335394582,1724183442623,-1859.59531571,0.00032757,2]
[335394583,1724183442634,-150.112233,0.000328,10]
[335394584,1724183442643,-9991.83961064,0.00033,120]
[335394585,1724183442652,-176.8102754,0.00033,120]
[335394586,1724183442661,-300.0,0.00033,7]
[335394587,1724183442671,-223.0,0.00033,2]
[335394588,1724183442680,-223.0,0.00033,2]
[335394589,1724183442690,-500.0,0.00033141,7]
[335394590,1724183442699,-155.12080504,0.00033234,3]
[335394591,1724183442708,-1415.0,0.00033243,2]
[335394592,1724183442718,-7726.0,0.00033243,2]
[335394593,1724183442728,-150.112233,0.000334,10]
[335394594,1724183442738,-440.9,0.00033516,4]
[335394595,1724183442747,-151.0,0.00033516,4]
[335394596,1724183442757,-165.008253,0.00033598,2]
[335394597,1724183442766,-275.399892,0.00033626,2]
[335394598,1724183442775,-592.74060956,0.00033789,2]
[335394599,1724183442785,-150.112233,0.000339,5]
[335394600,1724183442794,-1932.186094,0.000339,16]
[335394601,1724183442803,-2853.63,0.00033999,2]
[335394602,1724183442813,-2853.63,0.00033999,2]
[335394603,1724183442822,-2853.63,0.00033999,2]
[335394604,1724183442833,-2853.63,0.00033999,2]
[335394605,1724183442846,-2853.63,0.00033999,2]
[335394606,1724183442856,-2853.63,0.00033999,2]
[335394607,1724183442866,-2853.63,0.00033999,2]
[335394608,1724183442876,-2853.63,0.00033999,2]
[335394609,1724183442887,-2853.63,0.00033999,2]
[335394610,1724183442896,-2853.63,0.00033999,2]
[335394611,1724183442906,-20892.32666414,0.00034,7]
[335394612,1724183442916,-300.0,0.00034,9]
[335394613,1724183442925,-14768.10920276,0.00034,7]
[335394614,1724183442934,-52140.91,0.00034,14]
[335394615,1724183442944,-828.80041013,0.00034,7]
[335394616,1724183442953,-151.0,0.00034,7]
[335394617,1724183442962,-151.0,0.00034,7]
[335394618,1724183442971,-151.0,0.000341,7]
[335394619,1724183442981,-151.0,0.000341,7]
[335394620,1724183442990,-151.0,0.000341,7]
[335394621,1724183442999,-151.0,0.000341,7]
[335394622,1724183443010,-151.0,0.000341,7]
[335394623,1724183443019,-151.0,0.000341,7]
[335394624,1724183443028,-188.746739,0.000341,7]
[335394625,1724183443037,-188.746739,0.000341,7]
[335394626,1724183443046,-151.0,0.000341,7]
[335394627,1724183443056,-153.0,0.00034192,2]
[335394628,1724183443065,-153.0,0.00034192,2]
[335394629,1724183443074,-153.0,0.00034192,2]
[335394630,1724183443083,-153.0,0.00034192,2]
[335394632,1724183443092,-153.0,0.00034192,2]
[335394634,1724183443102,-298.0,0.000342,30]
[335394636,1724183443111,-825.1,0.000342,14]
[335394638,1724183443120,-257.225589,0.00034247,2]
[335394640,1724183443129,-478.77,0.000343,120]
[335394642,1724183443138,-478.771,0.000343,120]
[335394644,1724183443147,-478.771,0.000343,120]
[335394645,1724183443156,-478.771,0.000343,120]
[335394646,1724183443165,-478.771,0.000343,120]
[335394647,1724183443174,-166.753821,0.00034399,2]
[335394648,1724183443183,-343.4714,0.000344,7]
[335394649,1724183443192,-343.4714,0.000344,7]
[335394650,1724183443202,-151.0,0.000344,7]
[335394651,1724183443211,-1000.0,0.000344,16]
[335394652,1724183443220,-1868.91723556,0.000345,120]
[335394653,1724183443229,-151.0,0.000345,7]
[335394654,1724183443239,-2744.11119351,0.000345,2]
[335394655,1724183443248,-475.0,0.0003452,7]
[335394656,1724183443257,-151.0,0.0003452,7]
[335394657,1724183443266,-151.0,0.0003452,7]
[335394658,1724183443276,-475.0,0.0003452,7]
[335394659,1724183443285,-415.862932,0.0003452,7]
[335394660,1724183443295,-151.0,0.0003452,7]
[335394661,1724183443304,-415.862932,0.0003452,7]
[335394662,1724183443313,-252.859974,0.0003452,7]
[335394663,1724183443322,-5523.812381,0.0003452,7]
[335394665,1724183443332,-5523.812381,0.0003452,7]
[335394667,1724183443341,-151.0,0.0003452,7]
[335394668,1724183443350,-151.0,0.0003452,7]
[335394669,1724183443359,-151.0,0.0003452,7]
[335394670,1724183443369,-151.0,0.0003452,7]
[335394671,1724183443378,-158.130838,0.0003452,7]
[335394672,1724183443387,-158.130838,0.0003452,7]
[335394673,1724183443397,-327.133494,0.0003452,7]
[335394675,1724183443406,-327.133494,0.0003452,7]
[335394676,1724183443415,-2297.64,0.0003452,21]
[335394678,1724183443424,-2297.64,0.0003452,21]
[335394690,1724183443514,-2297.64,0.0003452,21]
[335394692,1724183443523,-2297.64,0.0003452,21]
[335394695,1724183443533,-2297.64,0.0003452,21]
[335394697,1724183443542,-2297.64,0.0003452,21]
[335394699,1724183443551,-2297.64,0.0003452,21]
[335394701,1724183443560,-2297.64,0.0003452,21]
[335394703,1724183443571,-2297.64,0.0003452,21]
[335394704,1724183443580,-2297.64,0.0003452,21]
[335394706,1724183443590,-2297.64,0.0003452,21]
[335394708,1724183443600,-2297.64,0.0003452,21]
[335394710,1724183443609,-2297.64,0.0003452,21]
[335394712,1724183443620,-2297.64,0.0003452,21]
[335394714,1724183443630,-2297.64,0.0003452,21]
[335394716,1724183443640,-2297.64,0.0003452,21]
[335394718,1724183443650,-2297.64,0.0003452,21]
[335394720,1724183443659,-2297.64,0.0003452,21]
[335394722,1724183443669,-2297.64,0.0003452,21]
[335394724,1724183443679,-2297.64,0.0003452,21]
[335394726,1724183443689,-2297.64,0.0003452,21]
[335394728,1724183443698,-2297.64,0.0003452,21]
[335394730,1724183443709,-2297.64,0.0003452,21]
[335394732,1724183443719,-2297.66433779,0.0003452,21]
[335394734,1724183443728,-151.0,0.0003467,7]
[335394736,1724183443737,-4574.34,0.000347,14]
[335394737,1724183443746,-151.355207,0.000347,7]
[335394739,1724183443756,-150.0,0.0003471,2]
[335394741,1724183443765,-3670.26828292,0.00034716,2]
[335394743,1724183443775,-11880.49221652,0.00034731,14]
[335394745,1724183443785,-500.0,0.00034759,7]
[335394747,1724183443796,-920.11790216,0.000348,4]
[335394749,1724183443807,-6968.06052252,0.000348,12]
[335394751,1724183443816,-885.08,0.000348,31]
[335394753,1724183443826,-885.08,0.000348,31]
[335394755,1724183443837,-885.08,0.000348,31]
[335394758,1724183443851,-885.08,0.000348,31]
[335394759,1724183443862,-885.08,0.000348,31]
[335394761,1724183443873,-885.08,0.000348,31]
[335394763,1724183443883,-885.08,0.000348,31]
[335394765,1724183443894,-885.08,0.000348,31]
[335394767,1724183443904,-885.08,0.000348,31]
[335394769,1724183443914,-885.08,0.000348,31]
[335394771,1724183443925,-885.08,0.000348,31]
[335394773,1724183443935,-885.08,0.000348,31]
[335394775,1724183443944,-885.08,0.000348,31]
[335394778,1724183443954,-885.08,0.000348,31]
[335394781,1724183443964,-885.08,0.000348,31]
[335394784,1724183443973,-885.08,0.000348,31]
[335394787,1724183443983,-151.0,0.000348,7]
[335394790,1724183443992,-23003.724524,0.000349,7]
[335394793,1724183444003,-343.4714,0.000349,7]
[335394794,1724183444013,-343.4714,0.000349,7]
[335394796,1724183444022,-151.0,0.000349,7]
[335394798,1724183444032,-475.0,0.000349,7]
[335394800,1724183444041,-151.0,0.000349,7]
[335394801,1724183444051,-151.0,0.000349,7]
[335394802,1724183444063,-475.0,0.000349,7]
[335394803,1724183444073,-415.862932,0.000349,7]
[335394804,1724183444083,-151.0,0.000349,7]
[335394805,1724183444092,-415.862932,0.000349,7]